{"text_format":"1","workbook":"xlsx","n_sheets":14,"sheets":["Сводная-2017","Прил.1-2017","Прил.2-2017","Прил.3-2017","Прил.4-2017","Прил.5-2017","Прил.5-2017-Р.4(1)","Прил.5-2017-Р.4(2)","Прил.5-2017-Р.4(3)","Прил.5-2017-Р.4 (4)","Прил.6-2017","Прил.6_Поясн.зап.-2017","Прил.7-2017","Субъекты"],"not_rendered":{"charts":0,"images":10,"macros":1,"external_links":0,"defined_names":8,"comments":0,"pivot_tables":0},"unopened":[],"bounds":{"document_bytes":16777216,"sheet_cells":100000,"rows_first":2000,"rows_last":500,"rows_between":2000,"halvings":0,"cell_chars":16384,"cell_head_chars":4096},"cells_cut":0,"cells_raw":0,"read":"whole","date_system":"1900"}

{"sheet":"Сводная-2017","index":0,"n_rows":29,"n_cols":10,"rows_kept":29,"cut":false,"hidden":false,"merged":[[2,0,2,9],[6,0,7,0],[6,1,7,1],[6,2,6,3],[6,4,6,5],[6,6,6,7],[3,1,3,7],[4,0,4,9],[0,4,0,9],[27,2,27,3],[24,2,24,3],[22,2,22,3],[22,5,22,6],[24,5,24,6],[26,5,26,6],[27,5,27,6],[26,2,26,3],[23,2,23,3],[23,5,23,6],[25,2,25,3],[25,5,25,6],[12,0,12,9],[1,4,1,9],[6,8,6,9]]}
[]
[]
["Сводная бюджетная заявка на предоставление материально-технических ресурсов, приобретаемых за счет средств федерального бюджета, в 2017 году \nв рамках реализации мероприятий федеральной целевой программы\n\"Повышение безопасности дорожного движения в 2013-2020 годах\""]
["Субъект Российской Федерации:  ","Наименование субъекта РФ"]
["Сводная бюджетная заявка на ассигнования из федерального бюджета на 2017 год"]
[null,null,null,null,null,null,null,null,null,"/тыс.руб./"]
["Наименование расходов и источников финансирования","Единица\nизмерения","Бюджетная заявка на поставки МТР за счет средств федерального бюджета",null,"Планируемые ассигнования субъектов Российской Федерации за счет регионального бюджета и местных бюджетов субъекта РФ",null,"Планируемые ассигнования субъектов Российской Федерации за счет внебюджетных средств",null,"% финансирования из регионального бюджета и внебюджетных источников по отношению к соответствующему мероприятию ФЦП"]
[null,null,"Количество","Сумма","Количество","Сумма","Количество","Сумма","плановый","фактический"]
[1,{"$f":"A9+1","v":2},{"$f":"B9+1","v":3},4,5,6,7,8,{"$f":"H9+1","v":9},{"$f":"I9+1","v":10}]
["I. Объем поставок МТР за счвет средств федерального бюджета",null,"-",0,"-",{"$f":"F11","v":0},"-",{"$f":"H11","v":0},null,{"$f":"IF(D10+F10+H10=0,0,(F10+H10)/(D10))","v":0}]
["Прочие нужды",null,"-",0,"-",{"$f":"SUM(F14:F20)","v":0},"-",{"$f":"SUM(H14:H20)","v":0},null,0]
["II. Обоснование ассигнований на реализацию программы в том числе :     "]
["Прочие нужды"]
["2/7 \"Оснащение системами автоматического контроля и выявления нарушений Правил дорожного движения улично-дорожной сети городов и населенных пунктов, дорог регионального и муниципального значения (не менее 3936 комплексов)\" на 2017 год  (Приложение 1)","комплекс",{"$f":"'Прил.1-2017'!G9","v":0},{"$f":"'Прил.1-2017'!H9","v":0},null,null,null,null,2.5859999999999999,{"$f":"IF(D14+F14+H14=0,0,(F14+H14)/(D14))","v":0}]
["3/7 \"Приобретение мобильных автогородков для организаций в субъектах Российской Федерации, осуществляющих деятельность по формированию у детей дошкольного и школьного возраста навыков безопасного поведения на дороге (закупка не менее 269 мобильных автогородков)\" на 2017 год (Приложение 2)","мобильный автогородок",{"$f":"'Прил.2-2017'!C6","v":0},{"$f":"'Прил.2-2017'!E6","v":0},null,null,null,null,2,0]
["3/8 \"Приобретение для дошкольных образовательных организаций оборудования, позволяющего в игровой форме формировать навыки безопасного поведения на дороге (не менее 1390 комплектов)\" на 2017 год (Приложение 3)","комплект",{"$f":"'Прил.3-2017'!C7","v":0},{"$f":"'Прил.3-2017'!E7","v":0},null,null,null,null,2,0]
["3/10 \"Изготовление и распространение световозвращающих приспособлений среди дошкольников и учащихся младших классов образовательных организаций (не менее 15 млн. штук)\" на 2017 год (Приложение 4)","шт.",{"$f":"'Прил.4-2017'!B6","v":0},{"$f":"'Прил.4-2017'!D6","v":0},null,null,null,null,5,{"$f":"IF(D17+F17+H17=0,0,(F17+H17)/(D17))","v":0}]
["5/9 \"Оснащение участков улично-дорожной сети городов и населенных пунктов пешеходными ограждениями, в том числе в зоне пешеходных переходов (не менее 809 км)\" на 2017 год (Приложение 5)","пог.метр",{"$f":"'Прил.5-2017'!$D$30","v":0},{"$f":"'Прил.5-2017'!F30","v":0},null,null,null,null,2,{"$f":"IF(D18+F18+H18=0,0,(F18+H18)/(D18))","v":0}]
["5/10 \"Модернизация нерегулируемых пешеходных переходов, в том числе прилегающих непосредственно к дошкольным образовательным организациям, общеобразовательным организациям и организациям дополнительного образования, средствами  освещения, искусственными дорожными неровностями, светофорами Т.7, системами светового оповещения, дорожными знаками с внутренним освещением и светодиодной индикацией, Г-образными опорами, дорожной разметкой, в том числе с применением штучных форм и цветных дорожных покрытий, световозвращателями и индикаторами, а также устройствами дополнительного освещения и другими элементами повышения безопасности дорожного движения (не менее 2427 переходов)\" на 2017 год (Приложение 6)","пешеходный переход",{"$f":"'Прил.6-2017'!$C$37","v":0},{"$f":"'Прил.6-2017'!$D$37","v":0},null,null,null,null,2.9079999999999999,{"$f":"IF(D19+F19+H19=0,0,(F19+H19)/(D19))","v":0}]
["5/11 \"Модернизация светофорных объектов (не менее 2874)\" на 2017 год (Приложение 7)","объект",{"$f":"'Прил.7-2017'!$P$36","v":0},{"$f":"'Прил.7-2017'!$P$38","v":0},null,null,null,null,2,{"$f":"IF(D20+F20+H20=0,0,(F20+H20)/(D20))","v":0}]
[]
[]
[]
["(Должность)",null,"(Подпись)",null,null,"(Инициалы, фамилия)"]
[]
["(Должность исполнителя)",null,"(Подпись)",null,null,"(Инициалы, фамилия)"]
[]
[null,null,"(контактный телефон)",null,null,"(электронная почта)"]
["«____» __________________ 20___  г."]

{"sheet":"Прил.1-2017","index":1,"n_rows":25,"n_cols":8,"rows_kept":25,"cut":false,"hidden":false,"merged":[[14,0,14,3],[14,4,14,7],[7,3,7,4],[0,3,0,7],[1,1,1,7],[11,6,11,7],[12,6,12,7],[20,5,20,7],[3,1,3,2],[3,3,3,4],[4,1,4,2],[4,3,4,4],[10,0,10,7],[13,6,13,7],[5,1,5,2],[6,1,6,2],[7,1,7,2],[5,3,5,4],[6,3,6,4]]}
[{"$f":"'Сводная-2017'!B4","v":"Наименование субъекта РФ"},null,null,"ПРИЛОЖЕНИЕ № 1 к сводной бюджетной заявке «Оснащение комплексами видеофиксации»"]
[null,"Заявка на выделение МТР в рамках ФЦП «Повышение безопасности дорожного движения в 2013–2020 годах»\nпо мероприятию № 2/7 «Оснащение системами автоматического контроля и выявления нарушений правил дорожного движения улично-дорожной сети городов и населенных пунктов, дорог регионального и муниципального значения (не менее 3936 комплексов)»\nна 2017 год"]
["1. Передвижные комплексы видеофиксации"]
["№ п/п","Наименование комплекса1",null,"Вид фиксируемых нарушений",null,"Цена одного комплекса по прейскуранту производителя,2 тыс.руб.","Количество комплексов","ИТОГО, тыс.руб."]
[1,2,null,3,null,4,5,6]
[null,null,null,null,null,null,0,{"$f":"F6*G6","v":0}]
[null,null,null,null,null,null,0,{"$f":"F7*G7","v":0}]
[null,null,null,null,null,null,0,0]
[null,null,null,null,null,"Итого:",{"$f":"SUM(G6:G8)","v":0},{"$f":"SUM(H6:H8)","v":0}]
[]
["2. Сведения об организациях, уполномоченных на получение МТР от  поставщика (заполнение обязательно!)"]
["№ п/п","Наименование организации-получателя","Юридический адрес","Почтовый адрес","Должность, Ф.И.О. руководителя","Телефон, факс","Адрес электронной почты"]
[]
[]
["Наличие согласия субъекта Российской Федерации на получение МТР (дата и номер отдельного письма, прилагается к бюджетной заявке) в соответствии с образцом, приведенным в приложении 1 к Рекомендациям по заполнению бюджетной заявки (заполнение обязательно)",null,null,null,"Дата и номер письма:"]
[]
["1 Поставке подлежат только комплексы, произведенные и сертифицированные на территории Российской Федерации."]
["2 К бюджетной заявке необходимо приложить копии официальных коммерческих предложений."]
[]
[null,"(Должность)","(Подпись)","(Инициалы, фамилия)"]
[null,null,null,null,null,"«___» ___________ 20___ г."]
[]
[null,"(Должность составителя заявки)","(Подпись)","(Инициалы, фамилия)"]
[]
[null,"(контактный телефон)","(электронная почта)"]

{"sheet":"Прил.2-2017","index":2,"n_rows":34,"n_cols":5,"rows_kept":34,"cut":false,"hidden":false,"merged":[[2,0,2,4],[9,2,9,4],[10,2,10,4],[24,1,24,4],[11,2,11,4],[12,2,12,4],[14,2,14,4],[19,0,19,4],[20,0,20,4],[21,1,21,4],[17,1,17,4],[14,0,14,1],[33,2,33,3],[33,0,33,1],[0,2,0,4],[25,4,26,4],[25,0,26,1],[28,4,29,4],[27,2,27,3],[30,2,30,3],[30,0,30,1],[31,0,32,1],[31,2,32,3],[27,0,27,1],[28,0,29,1],[22,1,22,4],[23,0,23,5],[1,0,1,4]]}
[{"$f":"'Сводная-2017'!$B$4","v":"Наименование субъекта РФ"},null,"ПРИЛОЖЕНИЕ № 2 к сводной бюджетной заявке «Приобретение мобильных автогородков»"]
["Заявка на выделение МТР в рамках ФЦП «Повышение безопасности дорожного движения в 2013-2020 годах»\nпо мероприятию № 3/7 «Приобретение мобильных автогородков для организации в субъектах Российской Федерации, осуществляющих деятельность по формированию у детей дошкольного и школьного возраста навыков безопасного поведения на улично-дорожной сети (закупка не менее 269 мобильных автогородков)»\nна 2017 год"]
["1. Мобильные автогородки"]
["№ п/п","Наименование оборудования","Требуемое количество","Цена производителя1,\nтыс. руб.","Сумма, тыс. руб."]
[1,"Мобильный автогородок на базе транспортного средства",0,0,{"$f":"C5*D5","v":0}]
[null,"ИТОГО",{"$f":"SUM(C5:C5)","v":0},null,{"$f":"SUM(E5:E5)","v":0}]
[]
[]
["2. Сведения об организации, уполномоченной на получение МТР от поставщика (заполнение обязательно!)"]
["Наименование организации-получателя"]
["Юридический адрес"]
["Почтовый адрес"]
["Должность, ФИО руководителя"]
["Телефон, факс, адрес электронной почты"]
["Наличие согласия субъекта Российской Федерации на получение МТР (дата и номер отдельного письма, прилагается к бюджетной заявке) в соответствии с образцом, приведенным в приложении 1 к Рекомендациям по заполнению бюджетной заявки",null,"Дата и номер письма:"]
[]
[]
[null,"Мобильный автогородок представляет собой комплекс технических средств и учебно-методических пособий, позволяющий быстро сформировать площадку по обучению правилам дорожной безопасности на любой необустроенной территории, различной конфигурации и сложности в зависимости от используемой площади и поставленных задач.\nМобильный автогородок как средство перевозки детей не используется, перевозка пассажиров в нем запрещается.\nВ состав мобильного автогородка включены:\n• транспортное средство, в котором размещается комплект основных технических средств обучения Правилам дорожного движения и основам безопасного поведения на дорогах;\n• макеты дорожных знаков, выполненные в соответствии с требованиями ПДД. Количество знаков должно позволять имитировать на площадке реальную дорожную обстановку;\n• макеты светофоров;\n• пластиковые барьеры и пластиковые конусы для формирования дорожек; \n• мини-транспортные средства, предназначенные для практического изучения правил дорожного движения детьми в возрасте 7–10 лет;\nнаглядные пособия;\n• комплект технических средств обучения для демонстрации учебных материалов на компакт-дисках или других носителях: ноутбук, монитор, акустические системы;\n• аппаратно-программные обучающие комплексы на базе переносных персональных компьютеров с установленным программным обеспечением."]
[]
["1 Указывается средняя цена на основе коммерческих предложений, которые прилагаются к бюджетной заявке."]
[]
[]
[]
[]
[]
[]
[]
["(должность)",null,"(подпись)",null,"(инициалы, фамилия)"]
[]
[]
["(должность составителя заявки)",null,"(подпись)",null,"(инициалы, фамилия)"]
[]
[null,null,null,null,"«____» _________ 20___ г."]
["(контактный телефон)",null,"(электронная почта)"]

{"sheet":"Прил.3-2017","index":3,"n_rows":32,"n_cols":5,"rows_kept":32,"cut":false,"hidden":false,"merged":[[14,0,14,1],[0,2,1,5],[3,0,3,5],[22,1,22,4],[24,3,24,4],[24,0,24,1],[18,1,18,4],[19,1,19,4],[20,1,20,4],[2,0,2,4],[9,2,9,4],[17,0,17,4],[10,2,10,4],[11,2,11,4],[12,2,12,4],[14,2,14,4],[16,0,16,4],[31,0,31,1],[30,3,30,4],[25,0,25,1],[26,0,27,1],[26,3,27,4],[29,0,30,1],[28,0,28,1],[28,3,28,4],[25,3,25,4]]}
[{"$f":"'Сводная-2017'!B4","v":"Наименование субъекта РФ"},null,"ПРИЛОЖЕНИЕ № 3 к сводной бюджетной заявке      «Приобретение оборудования для дошкольных образовательных организаций»"]
[]
["Заявка на выделение МТР в рамках ФЦП «Повышение безопасности дорожного движения\nв 2013-2020 годах» по мероприятию № 3/8 «Приобретение для дошкольных образовательных организаций оборудования, позволяющего в игровой форме формировать навыки безопасного поведения на дороге (не менее 1390 комплектов)»\nна 2017 год"]
["1. Комлпекты оборудования для дошкольных образовательных организаций"]
["№ п/п","Наименование оборудования","Требуемое количество","Цена производителя1,\nтыс. руб.","Сумма,\nтыс. руб."]
[1,"Комплект оборудования «Детский автогородок» для помещений2, компл.",0,0,{"$f":"C6*D6","v":0}]
[null,"ИТОГО",{"$f":"C6","v":0},null,{"$f":"E6","v":0}]
[]
["2. Сведения об организации, уполномоченной на получение МТР от поставщика (заполнение обязательно!)"]
["Наименование организации-получателя"]
["Юридический адрес"]
["Почтовый адрес"]
["Должность, ФИО руководителя"]
["Телефон, факс, адрес электронной почты"]
["Наличие согласия субъекта Российской Федерации на получение МТР (дата и номер отдельного письма, прилагается к бюджетной заявке) в соответствии с образцом, приведенным в приложении 1 к Рекомендациям по заполнению бюджетной заявки",null,"Дата и номер письма:"]
[]
["1 Указывается средняя цена на основе коммерческих предложений, которые прилагаются к бюджетной заявке"]
["2 Состав комплекта оборудования «Детский автогородок» для помещений:"]
[null,"1) комплект светоотражающих жилетов;"]
[null,"2) модели транспортных и пешеходных светофоров;"]
[null,"3) напольная модель четырехстороннего перекрестка;"]
[null,"4) комплект стоек «Дорожные знаки»;"]
[null,"5) информационные стенды (представляют собой многоцветные настенные панели, размером 700 х 1000 мм с крепежными элементами и информацией по вопросам обеспечения безопасности пешеходов и пассажиров транспортных средств)."]
[]
[]
["(должность)",null,"(подпись)","(инициалы, фамилия)"]
[]
[]
["(должность составителя заявки)",null,"(подпись)","(инициалы, фамилия)"]
[]
[null,null,null,"«____» ___________ 20___ г."]
["(контактный телефон)",null,"(электронная почта)"]

{"sheet":"Прил.4-2017","index":4,"n_rows":24,"n_cols":4,"rows_kept":24,"cut":false,"hidden":false,"merged":[[13,1,13,3],[15,0,15,3],[0,1,0,3],[1,0,1,3],[8,1,8,3],[9,1,9,3],[10,1,10,3],[11,1,11,3],[2,0,2,5],[18,0,19,0],[17,2,17,3],[16,2,16,3],[20,2,20,3],[22,1,22,2],[18,2,19,3],[18,1,19,1]]}
[{"$f":"'Сводная-2017'!B4","v":"Наименование субъекта РФ"},"ПРИЛОЖЕНИЕ № 4 к сводной бюджетной заявке «Изготовление и распространение световозвращающих приспособлений»"]
["Заявка на выделение МТР в рамках ФЦП «Повышение безопасности дорожного движения в 2013-2020 годах»\nпо мероприятию № 3/10 «Изготовление и распространение световозвращающих приспособлений среди дошкольников и учащихся младших классов образовательных организаций (не менее 15 млн. штук)»\nна 2017 год"]
["1. Световозвращающие приспособления"]
["Наименование","Количество","Цена производителей1, руб.","Сумма, тыс. руб."]
["Световозвращающая повязка для пешеходов с тематическим рисунком",0,0,{"$f":"B5*C5/1000","v":0}]
["ИТОГО",{"$f":"SUM(B5:B5)","v":0},null,{"$f":"SUM(D5:D5)","v":0}]
[]
["2. Сведения об организации, уполномоченной на получение МТР от поставщика (заполнение обязательно!)"]
["Наименование организации-получателя"]
["Юридический адрес"]
["Почтовый адрес"]
["Должность, ФИО руководителя"]
["Телефон, факс, адрес электронной почты"]
["Наличие согласия субъекта Российской Федерации на получение МТР (дата и номер отдельного письма, прилагается к бюджетной заявке) в соответствии с образцом, приведенным в приложении 1 к Рекомендациям по заполнению бюджетной заявки","Дата и номер письма:"]
[]
["1 Указывается средняя цена на основе коммерческих предложений, которые прилагаются к бюджетной заявке."]
[]
["(должность)","(подпись)","(инициалы, фамилия)"]
[]
[]
["(должность составителя заявки)","(подпись)","(инициалы, фамилия)"]
[]
[null,null,null,"«___» _________ 20___ г."]
["(контактный телефон)","(электронная почта)"]

{"sheet":"Прил.5-2017","index":5,"n_rows":60,"n_cols":15,"rows_kept":60,"cut":false,"hidden":false,"merged":[[49,6,49,7],[49,8,49,10],[49,11,49,12],[49,13,49,14],[49,2,49,5],[48,6,48,7],[48,8,48,10],[48,11,48,12],[48,13,48,14],[48,2,48,5],[46,0,46,14],[47,6,47,7],[47,8,47,10],[47,11,47,12],[47,13,47,14],[47,2,47,5],[41,3,41,5],[41,6,41,7],[41,8,41,10],[41,11,41,12],[41,13,41,14],[40,3,40,5],[40,6,40,7],[40,8,40,10],[40,11,40,12],[40,13,40,14],[39,3,39,5],[39,6,39,7],[39,8,39,10],[39,11,39,12],[39,13,39,14],[38,11,38,12],[38,13,38,14],[32,13,32,14],[33,13,33,14],[34,13,34,14],[35,13,35,14],[37,3,37,5],[37,6,37,7],[37,8,37,10],[37,11,37,12],[37,13,37,14],[32,8,32,10],[33,8,33,10],[34,8,34,10],[35,8,35,10],[32,11,32,12],[33,11,33,12],[34,11,34,12],[35,11,35,12],[31,6,31,7],[32,6,32,7],[33,6,33,7],[34,6,34,7],[35,6,35,7],[45,0,45,14],[43,0,43,14],[44,0,44,14],[5,9,5,14],[6,9,6,11],[6,12,6,14],[36,0,36,14],[34,3,34,5],[35,3,35,5],[30,0,30,11],[32,3,32,5],[33,3,33,5],[31,13,31,14],[31,11,31,12],[31,3,31,5],[31,8,31,10],[38,3,38,5],[38,6,38,7],[38,8,38,10],[0,3,0,14],[5,4,7,4],[3,0,3,14],[5,0,7,0],[5,1,7,1],[5,3,7,3],[5,5,7,5],[5,6,7,6],[5,7,7,7],[5,8,7,8],[5,2,7,2],[50,6,50,7],[51,6,51,7],[50,8,50,10],[50,11,50,12],[50,13,50,14],[51,8,51,10],[51,11,51,12],[51,13,51,14],[50,2,50,5],[51,2,51,5],[58,0,58,1],[58,9,58,14],[58,4,58,6],[59,4,59,6],[54,9,55,14],[56,9,56,14],[54,0,55,4],[56,0,56,4],[54,6,55,7],[56,6,56,7],[59,0,59,1]]}
[{"$f":"'Сводная-2017'!B4","v":"Наименование субъекта РФ"},null,null,"ПРИЛОЖЕНИЕ № 5 к сводной бюджетной заявке «Оснащение пешеходными ограждениями»"]
[]
[]
["Заявка на выделение МТР в рамках ФЦП «Повышение безопасности дорожного движения в 2013-2020 годах»\nпо мероприятию № 5/9 \"Оснащение участков улично-дорожной сети городов и населенных пунктов пешеходными ограждениями, \nв том числе в зоне пешеходных переходов (не менее 809 км)»\nна 2017 год"]
["1. Адресный перечень"]
["№","Место (адрес) установки  пешеходных ограждений1 (населенный пункт, дорога, километр, пикет, улица и т.д, как указано в документации на дорогу)","Номер типового решения","Длина пешеходного ограждения2, п. м.","Предварительная цена за 1 п. метр, тыс. руб.","Предварительная сумма,\nтыс. руб.","Номер организации, осуществляющей технический надзор","Правоустанавливающие документы на землю у балансодержателя (да/нет) ","Наличие согласования с владельцем улично-дорожной сети  и ГИБДД (да/нет)","Сведения об аварийности"]
[null,null,null,null,null,null,null,null,null,"2014 г.",null,null,"2015 г."]
[null,null,null,null,null,null,null,null,null," ДТП ","Погибло","Ранено"," ДТП ","Погибло","Ранено"]
[1,2,null,3,4,5,6,7,8,9,10,11,12,13,14]
[1,null,null,null,null,{"$f":"D10*E10","v":0}]
[2,null,null,null,null,0]
[3,null,null,null,null,0]
[4,null,null,null,null,0]
[5,null,null,null,null,0]
[6,null,null,null,null,0]
[7,null,null,null,null,0]
[8,null,null,null,null,0]
[9,null,null,null,null,0]
[10,null,null,null,null,0]
[11,null,null,null,null,0]
[12,null,null,null,null,0]
[13,null,null,null,null,0]
[14,null,null,null,null,0]
[15,null,null,null,null,0]
[16,null,null,null,null,0]
[17,null,null,null,null,0]
[18,null,null,null,null,0]
[19,null,null,null,null,0]
[null,null,null,null,null,0]
[null,"ИТОГО:",null,{"$f":"SUM(D10:D29)","v":0},null,{"$f":"SUM(F10:F29)","v":0}]
["2. Сведения об организации – владельце улично-дорожной сети (балансодержателе)"]
["№","Наименование",null,"Должность, Ф.И.О. руководителя",null,null,"Юридический адрес",null,"Почтовый адрес",null,null,"Телефон, факс",null,"Адрес электронной почты"]
[1]
[2]
[3]
[4]
["3. Организации, которые по договору с ФКУ «Дирекция Программы ПБДД» на безвозмездной основе будут осуществлять технический надзор (заполнение обязательно):\n"]
["№","Наименование",null,"Должность, Ф.И.О. руководителя",null,null,"Юридический адрес",null,"Почтовый адрес",null,null,"Телефон, факс",null,"Адрес электронной почты"]
[1]
[2]
[3]
[4]
[]
["1 Конструктивно ограждения выполняются из секций, сваренных из металлопроката (не литье) с покрытием, нанесенным методом горячего цинкования. Типовые решения (эскизы пешеходных ограждений) приведены в разделе 5."]
["2 Указывается длина только самого ограждения, за вычетом всех разрывов."]
[" Балансодержатель должен иметь оформленные в установленном порядке правоустанавливающие документы на землю (копии прилагаются к бюджетной заявке)."]
["4. Наличие согласий муниципальных образований, на территории которых осуществляется установка пешеходных ограждений, на прием пешеходных ограждений в муниципальную собственность в соответствии с приложением 2 к Рекомендациям по заполнению бюджетной заявки (заполнение обязательно):\n"]
["№","Наименование муниципального образования (исполнительного органа муниципального образования)","Должность, Ф.И.О. руководителя",null,null,null,"Юридический адрес",null,"Почтовый адрес",null,null,"Телефон, адрес электронной почты",null,"Дата и номер письма-согласия на приемку МТР"]
[1]
[2]
[3]
[4]
[]
[]
[]
[]
["(должность составителя заявки)",null,null,null,null,null,"(подпись)",null,null,"(инициалы, фамилия)"]
[]
[null,null,null,null,null,null,null,null,null,"«____» ________________ 20___ г."]
["(контактный телефон)",null,null,null,"электронная почта"]

{"sheet":"Прил.5-2017-Р.4(1)","index":6,"n_rows":1,"n_cols":1,"rows_kept":1,"cut":false,"hidden":false,"merged":[[0,0,0,11]]}
["5. Эскизы пешеходных ограждений (типовые решения)"]

{"sheet":"Прил.5-2017-Р.4(2)","index":7,"n_rows":0,"n_cols":0,"rows_kept":0,"cut":false,"hidden":false,"merged":[]}

{"sheet":"Прил.5-2017-Р.4(3)","index":8,"n_rows":0,"n_cols":0,"rows_kept":0,"cut":false,"hidden":false,"merged":[]}

{"sheet":"Прил.5-2017-Р.4 (4)","index":9,"n_rows":18,"n_cols":19,"rows_kept":18,"cut":false,"hidden":false,"merged":[]}
[]
[]
[null,null,null,null,null,"Чертеж пешеходного ограждения (типовое решение № 4)",null,null,null,null,null,null,null,null,"\"Согласовано\""]
[]
[null,null,null,null,null,null,null,null,null,null,null,null,null,null,"_________________________________________________________"]
[]
[null,null,null,null,null,null,null,null,null,null,null,null,null,null,"_________________________________________________________"]
[]
[null,null,null,null,null,null,null,null,null,null,null,null,null,null,"_________________________________________________________"]
[]
[null,null,null,null,null,null,null,null,null,null,null,null,null,null,"_________________________________________________________"]
[]
[]
[]
[]
[null,null,null,null,null,null,null,null,null,null,null,null,null,null,"_________________________________________________________"]
[]
[null,null,null,null,null,null,null,null,null,null,null,null,null,null,null,null,null,null,"МП"]

{"sheet":"Прил.6-2017","index":10,"n_rows":64,"n_cols":12,"rows_kept":64,"cut":false,"hidden":false,"merged":[[57,2,57,3],[57,4,57,5],[57,6,57,7],[57,8,57,9],[57,10,57,11],[56,2,56,3],[56,4,56,5],[56,6,56,7],[56,8,56,9],[56,10,56,11],[55,2,55,3],[55,4,55,5],[55,6,55,7],[55,8,55,9],[55,10,55,11],[50,4,50,5],[50,6,50,7],[50,8,50,9],[50,10,50,11],[54,10,54,11],[49,4,49,5],[49,6,49,7],[49,8,49,9],[49,10,49,11],[60,7,60,11],[52,0,52,11],[53,2,53,3],[53,4,53,5],[53,6,53,7],[53,8,53,9],[53,10,53,11],[54,2,54,3],[54,4,54,5],[54,6,54,7],[54,8,54,9],[50,2,50,3],[41,10,41,11],[42,10,42,11],[43,10,43,11],[44,10,44,11],[46,2,46,3],[46,4,46,5],[46,6,46,7],[46,8,46,9],[46,10,46,11],[41,6,41,7],[42,6,42,7],[43,6,43,7],[44,6,44,7],[41,8,41,9],[42,8,42,9],[43,8,43,9],[44,8,44,9],[44,2,44,3],[41,4,41,5],[42,4,42,5],[43,4,43,5],[44,4,44,5],[41,2,41,3],[42,2,42,3],[43,2,43,3],[5,9,5,11],[4,0,6,0],[4,1,6,1],[4,4,6,4],[4,5,6,5],[0,2,0,11],[60,0,60,2],[59,0,59,2],[62,0,62,2],[38,0,38,11],[4,3,6,3],[39,0,39,11],[4,2,6,2],[40,10,40,11],[40,8,40,9],[40,6,40,7],[40,4,40,5],[40,2,40,3],[2,0,2,11],[4,6,4,11],[5,6,5,8],[63,0,63,2],[45,0,45,11],[59,6,59,11],[62,8,62,10],[61,0,61,2],[47,2,47,3],[47,4,47,5],[47,6,47,7],[47,8,47,9],[47,10,47,11],[48,2,48,3],[48,4,48,5],[48,6,48,7],[48,8,48,9],[48,10,48,11],[49,2,49,3]]}
[{"$f":"'Сводная-2017'!B4","v":"Наименование субъекта РФ"},null,"ПРИЛОЖЕНИЕ № 6 к сводной бюджетной заявке «Модернизация нерегулируемых пешеходных переходов»"]
[]
["Заявка на выделение МТР в рамках ФЦП «Повышение безопасности дорожного движения в 2013-2020 годах»\nпо мероприятию № 5/10 «Модернизация нерегулируемых пешеходных переходов, в том числе прилегающих непосредственно к дошкольным образовательным организациям, общеобразовательным организациям и организациям дополнительного образования, средствами  освещения, искусственными дорожными неровностями, светофорами Т.7, системами светового оповещения, дорожными знаками с внутренним освещением и светодиодной индикацией, Г-образными опорами, дорожной разметкой, в том числе с применением штучных форм и цветных дорожных покрытий, световозвращателями и индикаторами, а также устройствами дополнительного освещения и другими элементами повышения безопасности дорожного движения (не менее 2427 переходов)»\n на 2017 год"]
["1. Адресный перечень"]
["№ п/п","Место расположения пешеходного перехода (нас. пункт, улица, № дома или иные ориентиры)1","Номер типового решения","Стоимость, тыс. руб.","Номер организации-балансодер-жателя","Номер организации, осуществляющей технический надзор","Сведения об аварийности"]
[null,null,null,null,null,null,"2014 год",null,null,"2015 год"]
[null,null,null,null,null,null,"ДТП","погибло","ранено","ДТП","погибло","ранено"]
[1,2,3,4,5,6,7,8,9,10,11,12]
[1]
[2]
[3]
[4]
[5]
[6]
[7]
[8]
[9]
[10]
[11]
[12]
[13]
[14]
[15]
[16]
[17]
[18]
[19]
[20]
[21]
[22]
[23]
[24]
[25]
[26]
[27]
[]
[null,"ВСЕГО:",{"$f":"COUNTA(C9:C36)","v":0},{"$f":"SUM(D9:D36)","v":0}]
[]
["1Для каждого пешеходного перехода выбирается типовое решение, в соответствии с пояснительной запиской к приложению № 6. \nПешеходный переход должен располагаться на территории города (населенного пункта).\nСледует учитывать, что искусственные неровности могут применяться только на участках улиц с искусственным освещением.\nПри выборе типового решения 1 должна быть обеспечена техническая возможность подключения к электросети.\n"]
["2. Сведения об организации-владельце улично-дорожной сети (балансодержателе)"]
["№ п.","Наименование","Должность, Ф.И.О. руководителя",null,"Юридический адрес",null,"Почтовый адрес",null,"Телефон, факс",null,"Адрес электронной почты"]
[1]
[2]
[3]
[4]
["3. Организации, которые по договору с ФКУ «Дирекция Программы ПБДД» на безвозмездной основе будут осуществлять технический надзор (заполнение обязательно):"]
["№ п.","Наименование","Должность, Ф.И.О. руководителя",null,"Юридический адрес",null,"Почтовый адрес",null,"Телефон, факс",null,"Адрес электронной почты"]
[1]
[2]
[3]
[4]
[]
["4. Наличие согласий муниципальных образований, на территории которых осуществляется модернизация пешеходных переходов, на прием комплектов модернизации пешеходных переходов в муниципальную собственность в соответствии с приложением 2 к Рекомендациям по заполнению бюджетной заявки (заполнение обязательно):\n"]
["№ п.","Наименование муниципального образования (исполнительного органа муниципального образования)","Должность, Ф.И.О. руководителя",null,"Юридический адрес",null,"Почтовый адрес",null,"Телефон, адрес электронной почты",null,"Дата и номер письма-согласия на приемку МТР"]
[1]
[2]
[3]
[4]
[]
["(должность)",null,null,null,"(Подпись)",null,"(инициалы, фамилия)"]
[]
["(должность составителя заявки)",null,null,null,"(Подпись)",null,null,null,null,"(инициалы, фамилия)"]
[null,null,null,null,null,null,null,null,"«____» ____________ 20___ г."]
["(контактный телефон)",null,null,null,"(Электронная почта)"]

{"sheet":"Прил.6_Поясн.зап.-2017","index":11,"n_rows":128,"n_cols":7,"rows_kept":128,"cut":false,"hidden":false,"merged":[[97,0,97,5],[98,0,99,6]]}
["Пояснительная записка к Приложению № 6"]
["№ поз.","Номер типового решения, наименование используемых технических средств1","Ед. изм.","Кол-во","Примерная цена с учетом цен производителей и стоимости монтажа,\nтыс. руб.","Стоимость, тыс. руб.","Схема"]
[null,"Типовое решение 1"]
[1,"Дорожный знак 5.19.1 на щите с флуоресцентной основой","шт.",2,null,{"$f":"IF(E4=\"\",0,D4*E4)","v":0}]
[2,"Дорожный знак 5.19.2 на щите с флуоресцентной основой","шт.",2,null,{"$f":"IF(E5=\"\",0,D5*E5)","v":0}]
[3,"Дорожный знак 1.22 на щите с флуоресцентной основой и светодиодной индикацией (4 автономных индикатора на каждом знаке) ","шт.",2,null,{"$f":"IF(E6=\"\",0,D6*E6)","v":0}]
[4,"Стойка знака, оцинкованная, d = 76 мм, h = 4,0 м","шт.",4,null,{"$f":"IF(E7=\"\",0,D7*E7)","v":0}]
[5,"Разметка дорожная 1.14.1 из термопластика, нанесенная на дорожное покрытие желтого цвета",null,null,null,{"$f":"E8","v":0}]
[6,"Разметка дорожная 1.24.1, дублирующая дорожный знак 1.22 (штучные формы)","шт.",2,null,{"$f":"IF(E9=\"\",0,D9*E9)","v":0}]
[7,"Светофор светодиодный типа Т.7 с подключением к сети 220В со встроенной АКБ для работы в режиме 24 ч/сутки","шт.",4,null,{"$f":"IF(E10=\"\",0,D10*E10)","v":0}]
[null,"ВСЕГО:",null,{"$f":"SUM(D4:D10)","v":16},null,{"$f":"SUM(F4:F10)","v":0}]
[]
[]
[]
[]
[null,"Типовое решение 2"]
[1,"Дорожный знак 5.19.1 (2) двусторонний с внутренней подсветкой от сети 220В, работающий в темное время суток, с флуоресцентной окантовкой","шт.",2,null,{"$f":"IF(E17=\"\",0,D17*E17)","v":0}]
[2,"Дорожный знак 1.22 на щите с флуоресцентной основой и светодиодной индикацией","шт.",2,null,{"$f":"IF(E18=\"\",0,D18*E18)","v":0}]
[3,"Стойка знака, оцинкованная, d = 76 мм, h = 4,0 м","шт.",4,null,{"$f":"IF(E19=\"\",0,D19*E19)","v":0}]
[4,"Разметка дорожная 1.14.1 из термопластика, нанесенная на дорожное покрытие желтого цвета",null,null,null,{"$f":"E20","v":0}]
[5,"Разметка дорожная 1.24.1, дублирующая дорожный знак 1.22","шт.",2,null,{"$f":"IF(E21=\"\",0,D21*E21)","v":0}]
[null,"ВСЕГО:",null,{"$f":"SUM(D17:D21)","v":10},null,{"$f":"SUM(F17:F21)","v":0}]
[]
[]
[null,"Типовое решение 3"]
[1,"Дорожный знак 5.19.1 на щите с флуоресцентной основой ","шт.",2,null,{"$f":"IF(E26=\"\",0,D26*E26)","v":0}]
[2,"Дорожный знак 5.19.2 на щите с флуоресцентной основой","шт.",2,null,0]
[3,"Дорожный знак 1.22 на щите с флуоресцентной основой","шт.",2,null,0]
[4,"Дорожный знак 1.17 на щите с флуоресцентной основой","шт.",2,null,0]
[5,"Дорожный знак 3.24 на щите с флуоресцентной основой","шт.",4,null,0]
[6,"Дорожный знак 3.25","шт.",2,null,0]
[7,"Дорожный знак 5.20","шт.",4,null,0]
[8,"Дорожный знак 8.2.1","шт.",2]
[9,"Стойка знака, оцинкованная, d = 76 мм, h = 4,0 м","шт.",12,null,0]
[10,"Светофор светодиодный типа Т.7 с подключением к сети 220В со встроенной АКБ для работы в режиме 24 ч/сутки","шт.",4,null,0]
[11,"Разметка дорожная 1.14.1 из термопластика, нанесенная на дорожное покрытие желтого цвета",null,null,null,{"$f":"E36","v":0}]
[12,"Разметка дорожная 1.24.1, дублирующая дорожный знак 1.22","шт.",2,null,{"$f":"IF(E37=\"\",0,D37*E37)","v":0}]
[13,"Разметка дорожная 1.24.2, дублирующая дорожный знак 3.24","шт.",4,null,{"$f":"IF(E38=\"\",0,D38*E38)","v":0}]
[14,"Искусственная дорожная неровность с разметкой дорожной 1.25","шт.",2,null,{"$f":"IF(E39=\"\",0,D39*E39)","v":0}]
[null,"ВСЕГО:",null,{"$f":"SUM(D26:D39)","v":44},null,{"$f":"SUM(F26:F39)","v":0}]
[]
[]
[]
[null,"Типовое решение 4"]
[1,"Дорожный знак 5.19.1 (2) двусторонний с внутренней подсветкой от сети 220В, работающий в темное время суток, с флуоресцентной окантовкой","шт.",2,null,{"$f":"D45*E45","v":0}]
[2,"Дорожный знак 1.22 на щите с флуоресцентной основой","шт.",2,null,0]
[3,"Дорожный знак 1.17 на щите с флуоресцентной основой","шт.",2,null,0]
[4,"Дорожный знак 3.24 на щите с флуоресцентной основой","шт.",4,null,0]
[5,"Дорожный знак 3.25","шт.",2,null,0]
[null,"Дорожный знак 5.20",null,4,null,0]
[6,"Дорожный знак 8.2.1","шт.",2,null,0]
[7,"Стойка знака, оцинкованная, d = 76 мм, h = 4,0 м","шт.",12,null,{"$f":"IF(E52=\"\",0,D52*E52)","v":0}]
[8,"Разметка дорожная 1.14.1 из термопластика, нанесенная на дорожное покрытие желтого цвета",null,null,null,{"$f":"E53","v":0}]
[9,"Разметка дорожная 1.24.1, дублирующая дорожный знак 1.22","шт.",2,null,0]
[10,"Разметка дорожная 1.24.2, дублирующая дорожный знак 3.24","шт.",4,null,0]
[11,"Искусственная дорожная неровность с разметкой дорожной 1.25","шт.",2,null,0]
[null,"ВСЕГО:",null,{"$f":"SUM(D45:D56)","v":38},null,{"$f":"SUM(F45:F56)","v":0}]
[null,"Типовое решение 5А"]
[1,"Дорожный знак 5.19.1 на щите с флуоресцентной основой  ","шт.",2,null,{"$f":"D59*E59","v":0}]
[2,"Дорожный знак 5.19.2 на щите с флуоресцентной основой ","шт.",2,null,0]
[3,"Дорожный знак 1.23 на щите с флуоресцентной основой ","шт.",4,null,0]
[4,"Дорожный знак 1.17 на щите с флуоресцентной основой ","шт.",2,null,0]
[5,"Дорожный знак 3.24 на щите с флуоресцентной основой ","шт.",4,null,0]
[6,"Дорожный знак 3.25 ","шт.",2,null,0]
[7,"Дорожный знак 5.20 ","шт.",4,null,0]
[8,"Дорожный знак 8.2.1 ","шт.",4,null,0]
[9,"Стойка знака, оцинкованная, d=76 мм, h=4,0 м ","шт.",6,null,0]
[10,"Стойка знака, оцинкованная, d=76 мм, h=5,0 м ","шт.",6,null,0]
[11,"Г-образная опора ","шт.",2,null,0]
[12,"Светофор светодиодный типа Т.7 с подключением к сети 220В  ","шт.",4,null,0]
[13,"Разметка дорожная 1.14.1 из термопластика, нанесенная на дорожное покрытие желтого цвета ",null,null,null,0]
[14,"Разметка дорожная 1.24.1, дублирующая дорожный знак 1.23 ","шт.",2,null,{"$f":"E72","v":0}]
[15,"Разметка дорожная 1.24.2, дублирующая дорожный знак 3.24 ","шт.",4,null,0]
[16,"Разметка дорожная: надпись \"ДЕТИ\" или \"ШКОЛА\" ","шт.",2,null,0]
[17,"Ограничивающие пешеходные ограждения ","п.м.",200,null,0]
[18,"Искусственная дорожная неровность с разметкой дорожной 1.25 ","шт.",2,null,0]
[null,"ВСЕГО:",null,{"$f":"SUM(D59:D74)+D76+1","v":53},null,{"$f":"SUM(F59:F76)","v":0}]
[null,"Типовое решение 5Б"]
[1,"Дорожный знак 1.23 на щите с флуоресцентной основой и светодиодной индикацией ","шт. ",4,null,{"$f":"D79*E79","v":0}]
[2,"Дорожный знак 5.19.1 (2) двусторонний с внутренней 220В, работающий в темное время суток, с флуоресцентной окантовкой подсветкой от сети ","шт. ",2,null,0]
[3,"Дорожный знак 1.17 на щите с флуоресцентной основой ","шт. ",2,null,0]
[4,"Дорожный знак 3.24 на щите с флуоресцентной основой ","шт. ",4,null,{"$f":"D81*E82","v":0}]
[5,"Дорожный знак 3.25 ","шт. ",2,null,0]
[6,"Дорожный знак 5.20 ","шт. ",4,null,0]
[7,"Дорожный знак 8.2.1 ","шт. ",4,null,0]
[8,"Стойка знака, оцинкованная, d=76 мм, h=4,0 м ","шт. ",6,null,0]
[9,"Стойка знака, оцинкованная, d=76 мм, h=5,0 м ","шт. ",6,null,0]
[10,"Г-образная опора ","шт. ",2,null,0]
[11,"Светофор светодиодный типа Т.7 с подключением к сети 220В ","шт. ",4,null,0]
[12,"Разметка дорожная 1.14.1 из термопластика, нанесенная на дорожное покрытие желтого цвета ",null,null,null,0]
[13,"Разметка дорожная 1.24.1, дублирующая дорожный знак 1.23 ","шт. ",2,null,0]
[14,"Разметка дорожная 1.24.2, дублирующая дорожный знак 3.24 ","шт. ",4,null,{"$f":"E92","v":0}]
[15,"Разметка дорожная: надпись \"ДЕТИ\" или \"ШКОЛА\" ","шт. ",2,null,{"$f":"D92*E93","v":0}]
[16,"Ограничивающие пешеходные ограждения ","п.м. ",200,null,{"$f":"D93*E94","v":0}]
[17,"Искусственная дорожная неровность с разметкой дорожной 1.25 ","шт. ",2,null,{"$f":"D94*E95","v":0}]
[null,"ВСЕГО:",null,{"$f":"SUM(D79:D93, D95)+1","v":51},null,{"$f":"SUM(F79:F95)","v":0}]
[]
["      Примечание:  \n"]
["1 Предлагаемые к применению технические средства организации дорожного движения должны иметь техническую документацию, согласованную  в установленном порядке.\n   Типоразмеры дорожных знаков должны соответствовать требованиям п. 5.1.16. ГОСТ Р 52289-2004."]
[]
["2 Ограничивающие пешеходные ограждения поставляются в следующем виде:"]
[]
[]
[]
[]
[]
[]
[]
[]
[]
[]
[]
[]
[]
[]
[]
[]
[]
[]
[]
[]
[]
[null,"1 - Стойка ограждения"]
[null,"2 - Опорная плита стойки"]
[null,"3 - Труба секции"]
[null,"4 - Кольцо-вставка"]
[null,"L - Шаг стоек: 1,0 - 2,0 м"]
[null,"Н - Высота ограждения"]

{"sheet":"Прил.7-2017","index":12,"n_rows":108,"n_cols":24,"rows_kept":108,"cut":false,"hidden":false,"merged":[[96,2,96,4],[97,2,97,4],[94,5,94,7],[95,5,95,7],[96,5,96,7],[97,5,97,7],[92,0,92,16],[93,2,93,4],[93,5,93,7],[93,13,93,14],[93,15,93,16],[94,2,94,4],[95,2,95,4],[93,8,93,12],[94,13,94,14],[95,13,95,14],[96,13,96,14],[97,13,97,14],[94,15,94,16],[96,15,96,16],[97,15,97,16],[96,8,96,12],[97,8,97,12],[39,8,39,10],[39,13,39,14],[40,13,43,14],[44,13,47,14],[48,13,51,14],[48,8,51,10],[94,8,94,12],[95,8,95,12],[71,15,74,16],[40,11,43,12],[44,11,47,12],[48,11,51,12],[95,15,95,16],[63,8,66,10],[67,8,70,10],[71,8,74,10],[75,8,78,10],[79,8,82,10],[63,11,66,12],[67,11,70,12],[71,11,74,12],[75,11,78,12],[79,11,82,12],[63,13,66,14],[38,0,38,16],[67,13,70,14],[71,13,74,14],[75,13,78,14],[79,13,82,14],[75,15,78,16],[79,15,82,16],[40,1,43,1],[44,1,47,1],[63,2,66,4],[67,2,70,4],[71,2,74,4],[75,2,78,4],[79,2,82,4],[63,5,66,7],[67,5,70,7],[39,15,39,16],[40,15,43,16],[44,15,47,16],[48,15,51,16],[52,15,55,16],[56,15,59,16],[63,15,66,16],[67,15,70,16],[1,0,1,22],[3,0,9,0],[3,1,8,1],[3,2,9,2],[3,3,5,15],[3,18,3,23],[4,18,4,23],[6,18,9,18],[6,19,9,19],[6,20,9,20],[6,21,9,21],[6,22,9,22],[6,23,9,23],[2,0,2,4],[9,3,9,13],[5,18,5,20],[0,2,0,23],[62,8,62,10],[62,11,62,12],[62,13,62,14],[62,15,62,16],[3,16,9,16],[3,17,9,17],[7,3,7,15],[52,8,55,10],[56,8,59,10],[52,11,55,12],[56,11,59,12],[60,2,60,4],[60,5,60,6],[60,7,60,8],[62,2,62,4],[62,5,62,7],[39,11,39,12],[40,8,43,10],[44,8,47,10],[39,5,39,7],[40,5,43,7],[44,5,47,7],[5,21,5,23],[48,5,51,7],[40,0,43,0],[44,0,47,0],[48,0,51,0],[52,0,55,0],[56,0,59,0],[39,2,39,4],[40,2,43,4],[44,2,47,4],[48,2,51,4],[52,2,55,4],[56,2,59,4],[48,1,51,1],[71,5,74,7],[75,5,78,7],[79,5,82,7],[52,5,55,7],[56,5,59,7],[52,1,55,1],[56,1,59,1],[61,0,61,16],[63,0,66,0],[67,0,70,0],[71,0,74,0],[52,13,55,14],[56,13,59,14],[75,0,78,0],[79,0,82,0],[63,1,66,1],[67,1,70,1],[71,1,74,1],[75,1,78,1],[79,1,82,1],[107,16,107,23],[100,0,100,6],[101,0,101,6],[103,0,103,6],[104,0,104,6],[100,10,100,13],[101,10,101,13],[103,10,103,13],[104,10,104,13],[106,16,106,23],[100,16,100,23],[101,16,101,23],[103,16,103,23],[104,16,104,23],[107,10,107,13],[106,10,106,13],[106,0,106,1]]}
[{"$f":"'Сводная-2017'!B4","v":"Наименование субъекта РФ"},null,"ПРИЛОЖЕНИЕ № 7 к сводной бюджетной заявке «Модернизация светофорных объектов»"]
["Заявка на выделение МТР в рамках ФЦП «Повышение безопасности дорожного движения в 2013-2020 годах»\nпо мероприятию № 5/11 «Модернизация светофорных объектов (не менее 2874)» \nна 2017 год"]
["1. Модернизация светофорных объектов"]
["№\nп/п","Место  (адрес) расположения светофорного объекта1 (населенный пункт, улицы)","Наличие согласованной и утвержденной проектно-сметной документации (да/нет)","Наименование оборудования:",null,null,null,null,null,null,null,null,null,null,null,null,"Номер организации-балансодержателя3","Номер организации, осуществляющей технический надзор4","Характеристика места установки"]
[null,null,null,null,null,null,null,null,null,null,null,null,null,null,null,null,null,null,"Сведения об аварийности"]
[null,null,null,null,null,null,null,null,null,null,null,null,null,null,null,null,null,null,"2014 г.",null,null,"2015 г."]
[null,null,null,"Светофор транспортный\n(светодиодный) Т 1.2, шт.","Светофор транспортный\n(светодиодный) Т 1.2 п, шт.","Светофор транспортный\n(светодиодный) Т 1.2 л, шт.","Светофор пешеходный\n(светодиодный) П 1.1, шт.","Светофор транспортный\n(светодиодный) Т 1.2\nс табло обратного отсчёта времени, шт.","Светофор транспортный\n(светодиодный) Т 1.2 п\nс табло обратного отсчёта времени, шт.","Светофор транспортный\n(светодиодный) Т 1.2 л\nс табло обратного отсчёта времени, шт.","Светофор пешеходный\n(светодиодный) П 1.1\nс табло обратного отсчёта времени, шт.","Устройство звукового сопровождения пешехода, шт.","Табло обратного отсчёта времени, шт.","Контроллер дорожный, шт.","Предпочтительная марка контроллера"," ИТОГО, тыс. руб.",null,null," ДТП ","Погибло","Ранено"," ДТП ","Погибло","Ранено"]
[null,null,null,"Стоимость оборудования с учетом цен производителей и монтажа2, тыс.руб."]
[null,null,null,null,null,null,null,null,null,null,null,null,null,null,"-","-"]
[null,"Населенный пункт, название улицы 1 – название улицы 2",null,"Требуемое количество, шт."]
[1,2,3,4,5,6,7,8,9,10,11,12,13,14,15,16,17,18,19,20,21,22,23,24]
[1,null,null,null,null,null,null,null,null,null,null,null,null,null,null,{"$f":"D$9*D12+E$9*E12+F$9*F12+G$9*G12+H12*H$9+I12*I$9+J12*J$9+K$9*K12+L$9*L12+M$9*M12+N$9*N12","v":0}]
[2,null,null,null,null,null,null,null,null,null,null,null,null,null,null,{"$f":"D$9*D13+E$9*E13+F$9*F13+G$9*G13+H13*H$9+I13*I$9+J13*J$9+K$9*K13+L$9*L13+M$9*M13+N$9*N13","v":0}]
[3,null,null,null,null,null,null,null,null,null,null,null,null,null,null,{"$f":"D$9*D14+E$9*E14+F$9*F14+G$9*G14+H14*H$9+I14*I$9+J14*J$9+K$9*K14+L$9*L14+M$9*M14+N$9*N14","v":0}]
[4,null,null,null,null,null,null,null,null,null,null,null,null,null,null,0]
[5,null,null,null,null,null,null,null,null,null,null,null,null,null,null,0]
[6,null,null,null,null,null,null,null,null,null,null,null,null,null,null,0]
[7,null,null,null,null,null,null,null,null,null,null,null,null,null,null,0]
[8,null,null,null,null,null,null,null,null,null,null,null,null,null,null,0]
[9,null,null,null,null,null,null,null,null,null,null,null,null,null,null,0]
[10,null,null,null,null,null,null,null,null,null,null,null,null,null,null,0]
[11,null,null,null,null,null,null,null,null,null,null,null,null,null,null,0]
[12,null,null,null,null,null,null,null,null,null,null,null,null,null,null,0]
[13,null,null,null,null,null,null,null,null,null,null,null,null,null,null,0]
[14,null,null,null,null,null,null,null,null,null,null,null,null,null,null,0]
[15,null,null,null,null,null,null,null,null,null,null,null,null,null,null,0]
[16,null,null,null,null,null,null,null,null,null,null,null,null,null,null,0]
[17,null,null,null,null,null,null,null,null,null,null,null,null,null,null,0]
[18,null,null,null,null,null,null,null,null,null,null,null,null,null,null,0]
[19,null,null,null,null,null,null,null,null,null,null,null,null,null,null,0]
[20,null,null,null,null,null,null,null,null,null,null,null,null,null,null,0]
[21,null,null,null,null,null,null,null,null,null,null,null,null,null,null,0]
[22,null,null,null,null,null,null,null,null,null,null,null,null,null,null,0]
[23,null,null,null,null,null,null,null,null,null,null,null,null,null,null,0]
[null,null,null,null,null,null,null,null,null,null,null,null,null,null,null,0]
[null,"ИТОГО, светофорных объектов",null,null,null,null,null,null,null,null,null,null,null,null,null,{"$f":"COUNTA(B12:B35)","v":0}]
[null,"ИТОГО, шт.",null,{"$f":"SUM(D12:D35)","v":0},0,0,0,0,0,0,0,0,0,0,"-",{"$f":"COUNT(B12:B34)","v":0}]
[null,"ИТОГО, тыс.руб.",null,{"$f":"D37*D9","v":0},0,0,0,0,0,0,0,0,0,0,"-",{"$f":"SUM(P12:P35)","v":0}]
["2. Организации-балансодержатели светофорных объектов (заполнение обязательно):"]
["Номер","Наименование","Юридический адрес",null,null,"Почтовый адрес",null,null,"Должность руководителя",null,null,"Ф.И.О. руководителя",null,"Телефон, факс",null,"Адрес электронной почты"]
[1]
[]
[]
[]
[2]
[]
[]
[]
[3]
[]
[]
[]
[4]
[]
[]
[]
[5]
[]
[]
[]
[]
["3. Организации, которые по договору с ФКУ «Дирекция Программы ПБДД» на безвозмездной основе будут осуществлять технический надзор (заполнение обязательно):"]
["Номер","Наименование","Юридический адрес",null,null,"Почтовый адрес",null,null,"Должность руководителя",null,null,"Ф.И.О. руководителя",null,"Телефон, факс",null,"Адрес электронной почты"]
[1]
[]
[]
[]
[2]
[]
[]
[]
[3]
[]
[]
[]
[4]
[]
[]
[]
[5]
[]
[]
[]
[]
[]
[]
[]
["1 Указать место (адрес) светофорного объекта в виде пересечения двух улиц или иных ориентиров с указанием населенного пункта."]
["2 Копии официальных коммерческих предложений и сметного расчета на монтаж должны прилагаться к бюджетной заявке."]
["3 Указывается номер организации в соответствии с разделом 2."]
["4 Указывается номер организации в соответствии с разделом 3."]
[]
["4. Наличие согласий муниципальных образований, на территории которых осуществляется модернизация светофорных объектов, на прием комплектов модернизации светофорных объектов в муниципальную собственность в соответствии с приложением 2 к Рекомендациям по заполнению бюджетной заявки (заполнение обязательно):\n"]
["Номер","Наименование муниципального образования (исполнительного органа муниципального образования)","Юридический адрес",null,null,"Почтовый адрес",null,null,"Должность и Ф.И.О. руководителя",null,null,null,null,"Телефон, адрес электронной почты",null,"Дата и номер письма-согласия на приемку МТР"]
[]
[]
[]
[]
[]
[]
[]
["(Должность)",null,null,null,null,null,null,null,null,null,"(подпись)",null,null,null,null,null,"(инициалы, фамилия)"]
[]
[]
["(должность составителя заявки)",null,null,null,null,null,null,null,null,null,"(подпись)",null,null,null,null,null,"(инициалы, фамилия)"]
[]
["«____» __________________ 20___ года"]
[null,null,null,null,null,null,null,null,null,null,"(контактный телефон)",null,null,null,null,null,"(электронная почта)"]

{"sheet":"Субъекты","index":13,"n_rows":87,"n_cols":10,"rows_kept":87,"cut":false,"hidden":true,"merged":[]}
["№ по Конституции","Наименование субъекта РФ"]
["Нет","Наименование субъекта РФ",null,null,null,null,"1А",null,null,"Грунт + эмаль"]
[1,"Республика Адыгея (Адыгея) ",null,null,null,null,"1Б",null,null,"Горячее цинкование"]
[2,"Республика Алтай ",null,null,null,null,"2А"]
[3,"Республика Башкортостан ",null,null,null,null,"2Б"]
[4,"Республика Бурятия ",null,null,null,null,"3А",null,null,"Стационарный"]
[5,"Республика Дагестан ",null,null,null,null,"3Б",null,null,"Передвижной"]
[6,"Республика Ингушетия",null,null,null,null,"4А"]
[7,"Кабардино-Балкарская Республика ",null,null,null,null,"4Б"]
[8,"Республика Калмыкия ",null,null,null,null,"5А"]
[9,"Карачаево-Черкесская Республика ",null,null,null,null,"5Б"]
[10,"Республика Карелия ",null,null,null,null,"6А"]
[11,"Республика Коми ",null,null,null,null,"6Б"]
[12,"Республика Крым",null,null,null,null,"7А"]
[13,"Республика Марий Эл ",null,null,null,null,"7Б"]
[14,"Республика Мордовия ",null,null,null,null,"7В"]
[15,"Республика Саха (Якутия) ",null,null,null,null,"8А"]
[16,"Республика Северная Осетия - Алания ",null,null,null,null,"8Б"]
[17,"Республика Татарстан (Татарстан) ",null,null,null,null,"8В"]
[18,"Республика Тыва "]
[19,"Удмуртская Республика "]
[20,"Республика Хакасия "]
[21,"Чеченская Республика "]
[22,"Чувашская Республика - Чувашия",null,null,null,null,"Да"]
[23,"Алтайский край ",null,null,null,null,"Нет"]
[24,"Забайкальский край "]
[25,"Камчатский край "]
[26,"Краснодарский край "]
[27,"Красноярский край "]
[28,"Пермский край "]
[29,"Приморский край "]
[30,"Ставропольский край "]
[31,"Хабаровский край"]
[32,"Амурская область "]
[33,"Архангельская область "]
[34,"Астраханская область "]
[35,"Белгородская область "]
[36,"Брянская область "]
[37,"Владимирская область "]
[38,"Волгоградская область "]
[39,"Вологодская область "]
[40,"Воронежская область "]
[41,"Ивановская область "]
[42,"Иркутская область "]
[43,"Калининградская область "]
[44,"Калужская область "]
[45,"Кемеровская область "]
[46,"Кировская область "]
[47,"Костромская область "]
[48,"Курганская область "]
[49,"Курская область "]
[50,"Ленинградская область "]
[51,"Липецкая область "]
[52,"Магаданская область "]
[53,"Московская область "]
[54,"Мурманская область "]
[55,"Нижегородская область "]
[56,"Новгородская область "]
[57,"Новосибирская область "]
[58,"Омская область "]
[59,"Оренбургская область "]
[60,"Орловская область "]
[61,"Пензенская область "]
[62,"Псковская область "]
[63,"Ростовская область "]
[64,"Рязанская область "]
[65,"Самарская область "]
[66,"Саратовская область "]
[67,"Сахалинская область "]
[68,"Свердловская область "]
[69,"Смоленская область "]
[70,"Тамбовская область "]
[71,"Тверская область "]
[72,"Томская область "]
[73,"Тульская область "]
[74,"Тюменская область "]
[75,"Ульяновская область "]
[76,"Челябинская область "]
[77,"Ярославская область"]
[78,"город Москва "]
[79,"город Санкт-Петербург"]
[80,"город Севастополь"]
[81,"Еврейская автономная область"]
[82,"Ненецкий автономный округ "]
[83,"Ханты-Мансийский автономный округ - Югра "]
[84,"Чукотский автономный округ "]
[85,"Ямало-Ненецкий автономный округ"]